[Event "German Bundesliga 2024-25"]
[Site "Germany"]
[Date "2025.01.11"]
[Round "5"]
[White "Zilka, Stepan"]
[Black "Kamsky, Gata"]
[Result "1-0"]
[Annotator "TA"]
[ECO "C67"]
[WhiteElo "2539"]
[BlackElo "2609"]
[PlyCount "121"]
[EventDate "2024.09.27"]
[EventType "team-tourn"]
[EventCountry "GER"]
[TimeControl "40/5400+30:1800+30"]

{[%evp 15,121,18,19,20,22,20,37,38,35,8,15,0,44,40,39,44,37,41,34,44,40,44,90,91,86,82,84,86,81,79,86,95,106,104,106,103,133,110,129,131,135,136,148,114,111,117,118,124,118,105,121,121,168,151,153,164,158,145,158,138,131,135,132,139,151,151,152,152,152,84,366,277,310,391,762,623,477,623,566,236,905,1031,925,621,995,984,1447,1219,1218,799,741,731,713,628,5189,5622,29975,29977,29977,29978,29978,29979,29979,29980,29982,29982,29981,29983]} 1. e4 {[%emt 0:01:00]} e5 {[%emt 0:01:00]} 2. Nf3 {[%emt 0:00:00]} Nc6 {[%emt 0:00:30]} 3. Bb5 {[%emt 0:00:00]} Nf6 {[%emt 0:00:30]} 4. O-O {[%emt 0:00:30][%cal Bh1f1,Bf1e1,Be1e5][%mdl 32]} Nxe4 {[%emt 0:00:00]} 5. Re1 {[%emt 0:00:00]} Nd6 {[%emt 0:00:00]} 6. Nxe5 {[%emt 0:00:00]} Be7 {[%emt 0:00:30]} 7. Bf1 {[%emt 0:00:30]} Nxe5 {[%emt 0:00:30]} 8. Rxe5 {[%emt 0:00:00]} O-O {[%emt 0:00:30]} 9. Nc3 {[%emt 0:00:00] C67: Ruy Lopez: Berlin Defence: 4 0-0 Nxe4.} Bf6 {[%emt 0:13:30]} 10. Re1 {[%emt 0:01:30]} b6 {[%emt 0:01:30]} 11. d4 {[%emt 0:05:30] White is slightly better.} Bb7 {[%emt 0:02:30]} 12. Bf4 {[%emt 0:00:30]} Nf5 {[%emt 0:05:30]} 13. d5 {[%emt 0:02:30]} Bg5 $146 {[%emt 0:02:30] Black is weak on the light squares} (13... d6 14. Qh5 Ne7 15. Rad1 Ng6 16. Bc1 Bxc3 17. bxc3 Re8 18. c4 Qd7 19. f4 Rxe1 20. Rxe1 {½-½ Guliyev,N (2528)-Injac,T (2383) EU-ch 23rd Vrnjacka Banja 2023 (2)}) 14. Qg4 {[%emt 0:03:30]} Bxf4 {[%emt 0:00:00]} 15. Qxf4 {[%emt 0:00:30]} Nd6 {[%emt 0:00:00]} 16. Re3 {[%emt 0:02:30]} Re8 {[%emt 0:05:30]} 17. Rae1 {[%emt 0:00:00]} Rxe3 {[%emt 0:00:30]} 18. Rxe3 {[%emt 0:01:00]} Qf6 {[%emt 0:04:30]} (18... a5 $14) 19. Qxf6 $16 {[%emt 0:07:30]} gxf6 {[%emt 0:00:30]} 20. Bd3 {[%emt 0:00:30]} h6 {[%emt 0:03:30]} 21. Kf1 {[%emt 0:08:30]} Kf8 {[%emt 0:00:00]} 22. Ke2 {[%emt 0:04:30] White is more active.} Re8 {[%emt 0:06:00]} 23. Rxe8+ {[%emt 0:03:30]} Kxe8 {[%emt 0:00:30][%mdl 4096] Endgame KBN-KBN} 24. Ke3 {[%emt 0:03:30]} Ke7 {[%emt 0:00:00]} 25. Kf4 {[%emt 0:00:30]} a5 {[%emt 0:09:00]} 26. a3 {[%emt 0:03:30]} Kf8 {[%emt 0:00:30]} 27. g3 {[%emt 0:01:30]} Ke7 {[%emt 0:00:30]} 28. h4 {[%emt 0:01:30]} Kf8 {[%emt 0:05:30]} 29. b4 {[%emt 0:08:30]} axb4 {[%emt 0:00:00]} 30. axb4 {[%emt 0:00:30]} Ke7 {[%emt 0:00:00]} 31. Kg4 {[%emt 0:02:30]} Kf8 {[%emt 0:00:30]} 32. Bf1 {[%emt 0:11:30]} Kg7 {[%emt 0:02:30]} 33. Kf4 {[%emt 0:00:30]} Kg6 {[%emt 0:22:51]} (33... Kf8 $16 34. Bd3 Ke7) 34. Bd3+ {[%emt 0:03:30]} Kg7 {[%emt 0:00:09]} 35. Bf5 {[%emt 0:00:30]} Bc8 {[%emt 0:02:20]} 36. Bh3 {[%emt 0:03:30]} Kf8 {[%emt 0:04:01]} 37. Ne4 {[%emt 0:01:30]} Nxe4 {[%emt 0:00:13]} 38. Kxe4 {[%emt 0:00:30] KB-KB} Ke7 {[%emt 0:00:10]} 39. Kd4 {[%emt 0:06:07]} Kd6 {[%emt 0:10:49]} 40. c4 {[%emt 0:02:01]} Bb7 {[%emt 0:00:25]} 41. Bg2 {[%emt 0:07:22]} Ba6 {[%emt 0:09:32]} 42. Be4 {[%emt 0:04:30]} (42. b5 $142 Bb7 43. Ke4) 42... Ke7 $2 {[%emt 0:04:49][%mdl 8192] This move loses the game for Black.} (42... c5+ $16 {was necessary.} 43. dxc6 dxc6) 43. f4 {[%emt 0:00:30]} Bc8 {[%emt 0:00:51]} 44. Bf5 {[%emt 0:00:30]} Bb7 $2 {[%emt 0:01:52]} (44... Ba6 45. b5 Bb7) 45. g4 $18 {[%emt 0:04:30]} Ba6 {[%emt 0:03:34]} 46. h5 {[%emt 0:01:30]} Bb7 {[%emt 0:01:47]} 47. Ke3 {[%emt 0:10:21]} (47. b5 $142 {[%cal Og4g5] g5! would now be deadly.} Bc8 48. c5 bxc5+ 49. Kxc5) 47... Ba6 $2 {[%emt 0:04:47]} (47... c6 48. d6+ Kxd6) 48. b5 {[%emt 0:01:17]} Bb7 {[%emt 0:00:06]} 49. Kf3 {[%emt 0:04:16][%cal Og4g5]} c6 {[%emt 0:03:46] [#]} 50. Bxd7 $1 {[%emt 0:01:53][%mdl 512]} cxb5 {[%emt 0:03:47]} (50... cxd5 51. Bc6) 51. Bxb5 {[%emt 0:00:34]} Bc8 {[%emt 0:00:20]} 52. Kg3 {[%emt 0:01:28]} Kd6 {[%emt 0:00:37]} 53. Kh4 {[%emt 0:00:25]} Ke7 {[%emt 0:00:10]} 54. g5 {[%emt 0:00:46]} hxg5+ {[%emt 0:01:13]} 55. fxg5 {[%emt 0:00:06]} Bf5 {[%emt 0:00:04] [#]} 56. d6+ $1 {[%emt 0:04:27][%mdl 512] White mates.} Kxd6 {[%emt 0:00:09]} 57. gxf6 {[%emt 0:00:04]} Ke5 {[%emt 0:00:14]} 58. Kg5 {[%emt 0:00:09]} Be4 {[%emt 0:01:35]} 59. h6 {[%emt 0:00:23]} Kd6 {[%emt 0:00:45]} 60. Be8 {[%emt 0:00:21]} Ke6 {[%emt 0:00:06] [#]} 61. Bc6 $1 {[%emt 0:00:22] Weighted Error Value: White=0.13 (very precise) /Black=0.63  Loses game:     	---       	Black=1      Mistake:       	White=2     	Black=3      Inaccurate:     	White=1     	Black=1      OK:         	White=19    	Black=14     Best:        	White=3     	Black=3} 1-0

[Event "German Bundesliga 2024-25"]
[Site "Germany"]
[Date "2025.01.11"]
[Round "5"]
[White "Kosakowski, Jakub"]
[Black "Dautov, Rustem"]
[Result "1/2-1/2"]
[Annotator "TA"]
[ECO "B12"]
[WhiteElo "2516"]
[BlackElo "2568"]
[PlyCount "153"]
[EventDate "2024.09.27"]
[EventType "team-tourn"]
[EventCountry "GER"]
[TimeControl "40/5400+30:1800+30"]

{[%evp 89,153,0,0,0,0,-7,-8,-8,0,0,0,0,0,0,0,0,0,0,0,0,0,0,0,0,0,0,0,0,0,0,0,0,0,0,0,0,0,0,0,0,0,0,0,0,0,0,0,0,0,0,0,0,0,0,0,0,0,0,0,0,0,0,0,0,0,0]} 1. e4 {[%emt 0:01:00]} c6 {[%emt 0:01:00]} 2. d4 {[%emt 0:00:00]} d5 {[%emt 0:00:00]} 3. e5 {[%emt 0:00:00]} Bf5 {[%emt 0:00:00]} 4. h4 {[%emt 0:00:30]} h5 {[%emt 0:00:30]} 5. c4 {[%emt 0:00:30]} e6 {[%emt 0:00:30]} 6. Nc3 {[%emt 0:00:30]} dxc4 {[%emt 0:03:30]} 7. Bxc4 {[%emt 0:00:00]} Nd7 {[%emt 0:00:30]} 8. Nge2 {[%emt 0:00:00]} Be7 {[%emt 0:00:30]} 9. g3 {[%emt 0:00:30]} Nh6 {[%emt 0:09:30]} 10. Bf4 {[%emt 0:09:30]} Qb6 {[%emt 0:03:30]} 11. Qd2 {[%emt 0:12:30]} Qb4 {[%emt 0:16:30]} 12. Bd3 {[%emt 0:17:30]} Bxd3 {[%emt 0:01:30]} 13. Qxd3 {[%emt 0:01:30]} Nf5 {[%emt 0:00:30]} 14. Bd2 {[%emt 0:14:30]} Qb6 {[%emt 0:07:30]} 15. Qe4 {[%emt 0:09:30]} O-O-O {[%emt 0:10:30]} 16. O-O-O {[%emt 0:04:30]} Qa6 {[%emt 0:02:30]} 17. Kb1 {[%emt 0:04:30]} Nb6 {[%emt 0:03:30]} 18. Bc1 {[%emt 0:02:34]} Nd5 {[%emt 0:02:30]} 19. Nxd5 {[%emt 0:04:51]} cxd5 {[%emt 0:10:30]} 20. Qd3 {[%emt 0:02:11]} Qxd3+ {[%emt 0:02:30]} 21. Rxd3 {[%emt 0:00:05]} Kd7 {[%emt 0:00:30]} 22. Bd2 {[%emt 0:00:27]} Rc8 {[%emt 0:01:30]} 23. Rc1 {[%emt 0:06:07]} Rc4 {[%emt 0:00:30]} 24. b3 {[%emt 0:00:33]} Rxc1+ {[%emt 0:00:30]} 25. Bxc1 {[%emt 0:00:31]} Rc8 {[%emt 0:01:30]} 26. Ng1 {[%emt 0:02:46]} a5 {[%emt 0:05:41]} 27. Bd2 {[%emt 0:02:07]} Bd8 {[%emt 0:09:46]} 28. Nf3 {[%emt 0:00:20]} b5 {[%emt 0:00:53]} 29. Rc3 {[%emt 0:02:48]} Rxc3 {[%emt 0:01:48]} 30. Bxc3 {[%emt 0:00:03]} b4 {[%emt 0:00:25]} 31. Bb2 {[%emt 0:01:06]} Nh6 {[%emt 0:00:33]} 32. Ne1 {[%emt 0:02:01]} Ng4 {[%emt 0:00:47]} 33. Nd3 {[%emt 0:00:06]} g5 {[%emt 0:00:45]} 34. hxg5 {[%emt 0:00:14]} Bxg5 {[%emt 0:00:03]} 35. a3 {[%emt 0:01:07]} bxa3 {[%emt 0:01:44]} 36. Bc3 {[%emt 0:00:49]} h4 {[%emt 0:00:21]} 37. gxh4 {[%emt 0:00:03]} Bxh4 {[%emt 0:00:06]} 38. Bxa5 {[%emt 0:00:48]} Nxf2 {[%emt 0:01:35]} 39. Nxf2 {[%emt 0:00:33]} Bxf2 {[%emt 0:00:08]} 40. Bc3 {[%emt 0:00:02]} Bh4 {[%emt 0:00:00]} 41. Ka2 {[%emt 0:07:48]} Be7 {[%emt 0:04:25]} 42. b4 {[%emt 0:04:38]} Kc6 {[%emt 0:00:30]} 43. Kxa3 {[%emt 0:00:22]} Kb5 {[%emt 0:00:30]} 44. Kb3 {[%emt 0:00:30]} Bh4 {[%emt 0:02:30]} 45. Bd2 {[%emt 0:01:30]} Bf2 {[%emt 0:00:30]} 46. Bc3 $1 {[%emt 0:00:07]} Be3 {[%emt 0:01:30]} 47. Bb2 {[%emt 0:00:29]} Bd2 {[%emt 0:00:30]} 48. Bc3 $1 {[%emt 0:00:07]} Bxc3 {[%emt 0:06:30]} 49. Kxc3 {[%emt 0:00:17]} Ka4 {[%emt 0:00:00]} 50. b5 $1 {[%emt 0:00:30]} Kxb5 {[%emt 0:00:00]} 51. Kb3 {[%emt 0:00:00]} Kb6 {[%emt 0:07:45]} 52. Kb2 {[%emt 0:00:00]} Kb7 {[%emt 0:01:05]} 53. Kb1 {[%emt 0:00:30]} Kb8 {[%emt 0:01:29]} 54. Kb2 $1 {[%emt 0:00:30]} Kc7 {[%emt 0:04:41]} 55. Kc1 {[%emt 0:00:30]} Kd7 {[%emt 0:01:16]} 56. Kd1 {[%emt 0:00:30]} Ke7 {[%emt 0:01:00]} 57. Ke1 {[%emt 0:00:00]} f6 {[%emt 0:03:36]} 58. exf6+ {[%emt 0:00:00]} Kf7 {[%emt 0:00:23]} (58... Kxf6 $5 59. Kf2 $8 Kg6 $11) 59. Kf1 {[%emt 0:00:30]} Kg6 {[%emt 0:00:09]} (59... Kxf6 $5 60. Kf2 $8 Kg6 $11) 60. Kg2 {[%emt 0:00:30]} Kxf6 {[%emt 0:00:09]} 61. Kf2 $1 {[%emt 0:00:00]} Ke7 {[%emt 0:02:31]} 62. Ke1 {[%emt 0:00:00]} Kd6 {[%emt 0:00:32]} 63. Kd2 $1 {[%emt 0:00:30]} Kd7 {[%emt 0:00:43]} 64. Kd1 {[%emt 0:00:30]} Kc7 {[%emt 0:00:38]} (64... Kc6 $5 65. Kc2 $8 Kd7 $11) 65. Kc1 {[%emt 0:00:00]} Kc8 {[%emt 0:00:39]} (65... Kb6 $5 66. Kb2 $8 Ka6 $11) 66. Kc2 {[%emt 0:00:00]} Kd8 {[%emt 0:00:16]} 67. Kd2 {[%emt 0:00:00]} Ke7 {[%emt 0:00:32]} 68. Ke1 $1 {[%emt 0:00:00]} Kf7 {[%emt 0:00:23]} 69. Kf1 $1 {[%emt 0:00:30]} Kf8 {[%emt 0:00:15]} (69... Kg6 $5 70. Kg2 $8 Kg5 $11) 70. Kf2 $1 {[%emt 0:00:00]} Ke8 {[%emt 0:00:05]} 71. Ke2 {[%emt 0:00:00]} Kd8 {[%emt 0:01:21]} 72. Kd2 {[%emt 0:00:30]} Kd7 {[%emt 0:00:16]} 73. Kd1 $1 {[%emt 0:00:30]} Kc6 {[%emt 0:00:29]} (73... Kd6 $5) 74. Kc2 {[%emt 0:00:00]} Kc7 {[%emt 0:00:07]} (74... Kb5 $5 75. Kb3 $8 Kb6 $11) 75. Kc1 $1 {[%emt 0:00:00]} Kd6 {[%emt 0:01:06]} (75... Kb6 $5 76. Kb2 $8 Kb7 $11) 76. Kd2 {[%emt 0:00:30]} Ke7 {[%emt 0:00:11]} 77. Ke1 {[%emt 0:00:30]} 1/2-1/2

[Event "German Bundesliga 2024-25"]
[Site "Germany"]
[Date "2025.01.11"]
[Round "5.1"]
[White "Tabatabaei, M. Amin"]
[Black "Kazakouski, Valery"]
[Result "1-0"]
[Annotator "TA"]
[ECO "C54"]
[WhiteElo "2668"]
[BlackElo "2567"]
[PlyCount "67"]
[EventDate "2024.09.27"]
[EventType "team-tourn"]
[EventCountry "GER"]
[TimeControl "40/5400+30:1800+30"]

{[%evp 12,67,33,11,28,10,14,14,15,9,19,11,24,20,17,17,39,39,89,75,76,87,117,115,191,174,186,173,221,191,310,302,312,313,483,317,281,275,296,281,413,415,394,381,408,400,445,402,741,719,784,884,862,861,1475,1411,1240,1155]} 1. e4 {[%emt 0:00:33]} e5 {[%emt 0:00:09]} 2. Nf3 {[%emt 0:00:16]} Nc6 {[%emt 0:00:09]} 3. Bc4 {[%emt 0:00:38]} Bc5 {[%emt 0:00:09]} 4. d3 {[%emt 0:00:28]} Nf6 {[%emt 0:00:09]} 5. O-O {[%emt 0:00:24]} h6 {[%emt 0:00:53]} 6. c3 {[%emt 0:00:38]} d6 {[%emt 0:00:16]} 7. Re1 {[%emt 0:00:40]} (7. b4 $5 Bb6 $8 8. a4 $11) 7... O-O {[%emt 0:00:15] C54: Giuoco Piano: 4 c3 Nf6, main lines with 5 d4 and 5 d3.} 8. Nbd2 {[%emt 0:00:59][%cal Bb1d2,Bd2f1,Bf1g3][%mdl 32]} a5 {[%emt 0:00:33] 8...Bb6 is the hot move.} 9. h3 {[%emt 0:03:29]} Be6 {[%emt 0:01:52] The position is equal.} 10. b3 {[%emt 0:00:12]} Ba7 {[%emt 0:07:18]} 11. a4 {[%emt 0:01:57]} Nh5 $146 {[%emt 0:05:52]} (11... Re8 12. Bb5 Bd7 13. Bb2 Ne7 14. Bxd7 Qxd7 15. d4 Ng6 16. Qc2 Qc6 17. c4 Qd7 {0-1 Niemann,H (2675)-Santos Latasa,J (2612) Titled Tuesday intern op 06th Feb Early blitz 2024 (10)}) 12. Nf1 {[%emt 0:07:49]} Qf6 {[%emt 0:06:37]} 13. Ra2 {[%emt 0:13:41] A sharp opening} Nf4 {[%emt 0:04:28]} 14. Ng3 {[%emt 0:04:08]} g6 {[%emt 0:12:55] [#]} (14... Ng6 $14) 15. d4 $1 $16 {[%emt 0:02:35] Black is now going downhill.} Bxc4 {[%emt 0:01:17]} 16. bxc4 {[%emt 0:00:16][%cal Bb3c4,Bc4c5][%mdl 32]} Kh7 {[%emt 0:01:14]} 17. Be3 {[%emt 0:01:23]} Nd8 {[%emt 0:05:01]} (17... Rfe8 $16 18. Bxf4 exf4) 18. Rb2 {[%emt 0:02:02]} Nde6 {[%emt 0:01:35]} 19. Rxb7 {[%emt 0:04:09] [#]} Bb6 {[%emt 0:09:04]} (19... Rfd8 20. Nf1 Qe7) 20. c5 $1 $18 {[%emt 0:01:57]} Nd8 {[%emt 0:03:15]} (20... dxc5 21. Nxe5 Rfd8) 21. Rxb6 {[%emt 0:00:20]} cxb6 {[%emt 0:00:09]} 22. cxd6 {[%emt 0:00:04]} (22. cxb6 $6 Nb7 23. Bxf4 exf4) 22... Nc6 {[%emt 0:00:44]} (22... Qxd6 {was necessary.} 23. Nxe5 (23. dxe5 Qxd1 24. Rxd1 Nde6 $11) 23... Nde6) 23. dxe5 {[%emt 0:06:21]} Nxe5 {[%emt 0:00:18]} 24. Nxe5 {[%emt 0:00:39]} (24. Bxb6 Nxf3+ 25. Qxf3 (25. gxf3 Nxh3+ 26. Kf1 Qxc3 $16) 25... Qxd6 $11) 24... Qxe5 {[%emt 0:00:12]} 25. Qd2 {[%emt 0:05:54]} ({Don't play} 25. Bxb6 $6 Ne6 $18) (25. d7 $6 Ne6 26. Qd5 (26. Bxb6 Qxc3 27. e5 Qb4 $14) 26... Qxc3 $18) 25... Ne6 {[%emt 0:04:37]} (25... g5 $142 26. Rb1 (26. Bxb6 Rab8 $18) 26... Rfd8 27. Rxb6 (27. Bxb6 Qxd6 28. Qa2 Rd7 $16) 27... Rab8) 26. f4 {[%emt 0:01:53][%cal Bf2f4,Bf4f5][%mdl 32]} ({Weaker is} 26. Bxh6 Rfd8 $14) (26. Bxb6 Rab8 27. Be3 Rfc8 $16) 26... Qg7 {[%emt 0:02:17]} 27. Bxb6 {[%emt 0:04:25]} Ra6 {[%emt 0:02:55]} 28. Bf2 {[%emt 0:02:12]} Qf6 {[%emt 0:02:51]} 29. f5 {[%emt 0:03:04]} Ng7 {[%emt 0:08:21]} (29... Qe5 $142 30. fxe6 Rxd6) 30. e5 {[%emt 0:00:54][%cal Be4e5,Be5d6][%mdl 32] White is clearly winning.} Qd8 {[%emt 0:00:43]} 31. Ne4 {[%emt 0:02:09] Strongly threatening Nf6+.} Nxf5 {[%emt 0:03:33] Black is weak on the dark squares} 32. g4 {[%emt 0:00:18]} Nxd6 {[%emt 0:02:43]} 33. exd6 {[%emt 0:01:16]} f5 {[%emt 0:00:48]} 34. Qd3 {[%emt 0:00:32] Weighted Error Value: White=0.14 (very precise) /Black=0.74  Mistake:       	---       	Black=7      Inaccurate:     	White=1     	Black=1      OK:         	White=9     	Black=3      Best:        	White=4     	---        Strong:       	White=1     	---} 1-0

[Event "German Bundesliga 2024-25"]
[Site "Germany"]
[Date "2025.01.11"]
[Round "5.1"]
[White "Warmerdam, Max"]
[Black "Carlsen, Magnus"]
[Result "0-1"]
[Annotator "TA"]
[ECO "E67"]
[WhiteElo "2653"]
[BlackElo "2831"]
[PlyCount "66"]
[EventDate "2024.09.27"]
[EventType "team-tourn"]
[EventCountry "GER"]
[SourceTitle "playchess.com"]
[Source "ChessBase"]
[SourceQuality "1"]
[WhiteTeam "SG Solingen"]
[BlackTeam "St. Pauli"]
[TimeControl "40/5400+30:1800+30"]

{[%evp 17,66,24,57,41,58,-55,-41,-46,-34,-63,-70,-52,-67,-51,-47,-83,-76,-97,-76,-90,-99,-74,-69,-149,-149,-181,-175,-162,-153,-157,-147,-134,-135,-140,-97,-102,-103,-254,-252,-261,-243,-238,-230,-205,-212,-241,-241,-260,-233,-629,-629]} 1. c4 {[%emt 0:00:04]} e5 {[%emt 0:05:07]} 2. g3 {[%emt 0:00:20]} g6 {[%emt 0:05:03]} 3. d4 {[%emt 0:02:07]} d6 {[%emt 0:01:01]} 4. Nf3 {[%emt 0:06:01]} Nd7 {[%emt 0:03:12]} 5. Nc3 {[%emt 0:02:32]} Bg7 {[%emt 0:00:18]} 6. Bg2 {[%emt 0:00:09]} Ngf6 {[%emt 0:02:44]} 7. O-O {[%emt 0:00:48]} O-O {[%emt 0:00:12]} 8. Qc2 {[%emt 0:02:03]} Re8 {[%emt 0:02:24]} 9. Rd1 {[%emt 0:01:35]} e4 {[%emt 0:07:21]} 10. Ne1 {[%emt 0:06:23]} Nb6 {[%emt 0:05:33]} 11. c5 {[%emt 0:18:08]} (11. Bxe4 Nxe4 12. Nxe4 Bf5 $17) (11. Bg5 $1 $14) 11... Nbd5 $1 $15 {[%emt 0:01:15]} 12. cxd6 {[%emt 0:02:56]} (12. Bxe4 $2 Nxc3 13. bxc3 Nxe4 $19 (13... Rxe4 $2 14. f3 $19)) (12. Nxe4 Nxe4 13. Bxe4 Nb4 $17) 12... Qxd6 {[%emt 0:05:23]} 13. Bg5 {[%emt 0:16:29]} (13. Bxe4 $2 Nxc3 14. bxc3 Rxe4 $19 (14... Nxe4 $2 15. f3 $19)) 13... e3 {[%emt 0:04:37]} 14. f3 {[%emt 0:03:17]} Nxc3 {[%emt 0:01:15]} 15. bxc3 {[%emt 0:01:06]} Nd5 {[%emt 0:00:36] Dodges Bf4} 16. c4 {[%emt 0:02:14]} h6 $1 {[%emt 0:05:36]} 17. cxd5 {[%emt 0:04:09]} hxg5 {[%emt 0:00:43]} 18. Rac1 {[%emt 0:00:38]} Bf5 {[%emt 0:01:23]} 19. Qb3 {[%emt 0:05:04] White is weak on the dark squares} Rab8 {[%emt 0:02:52]} 20. Qc4 {[%emt 0:14:47]} ({White should play} 20. Nc2 $15) 20... Rbd8 $17 {[%emt 0:02:49][%cal Bb8d8,Bd8d6,Bd6a6,Ba6a2,Ba2d2][%mdl 32]} 21. f4 {[%emt 0:04:12]} gxf4 {[%emt 0:00:17]} 22. Qxc7 {[%emt 0:00:05]} fxg3 {[%emt 0:00:12]} 23. Qxd6 {[%emt 0:00:40]} Rxd6 {[%emt 0:00:09]} 24. hxg3 {[%emt 0:00:05]} Ra6 {[%emt 0:04:26]} 25. Bf3 {[%emt 0:05:44]} Bf8 {[%emt 0:01:02] Black is much more active.} 26. g4 {[%emt 0:00:15]} Be4 {[%emt 0:00:26]} 27. Rc7 $2 {[%emt 0:00:22]} (27. a4 $17 {was called for.}) 27... Rxa2 $19 {[%emt 0:01:32]} 28. Kf1 {[%emt 0:00:49]} Rd2 {[%emt 0:07:08]} (28... Bd6 29. Rxb7 Kg7 (29... Rd2 30. Ra1 $15) 30. Rb3 $17) 29. Ra1 {[%emt 0:00:39]} Rxd4 {[%emt 0:00:57]} ({Less strong is} 29... Bd6 30. Rxb7 Rxd4 31. Rbxa7 $15) 30. Rxa7 {[%emt 0:00:55]} Bxd5 {[%emt 0:05:11] Strongly threatening ...Bd6.} 31. Bxd5 {[%emt 0:00:12]} Rxd5 {[%emt 0:00:15]} 32. Kg2 {[%emt 0:00:58]} Rd2 {[%emt 0:00:57]} 33. Kf3 $2 {[%emt 0:00:02]} (33. Rc2) 33... Rd1 {[%emt 0:00:08]} 0-1

[Event "German Bundesliga 2024-25"]
[Site "Germany"]
[Date "2025.01.11"]
[Round "5.1"]
[White "Fridman, Daniel"]
[Black "Grandelius, Nils"]
[Result "1/2-1/2"]
[Annotator "TA"]
[ECO "D10"]
[WhiteElo "2581"]
[BlackElo "2639"]
[PlyCount "105"]
[EventDate "2024.09.27"]
[EventType "team-tourn"]
[EventCountry "GER"]
[SourceTitle "playchess.com"]
[Source "ChessBase"]
[SourceQuality "1"]
[WhiteTeam "Muelheim Nord"]
[BlackTeam "Hamburg"]
[TimeControl "40/5400+30:1800+30"]

{[%evp 22,105,23,23,36,10,10,16,12,0,0,0,0,0,0,0,0,0,0,0,0,0,12,18,14,16,39,18,18,18,14,14,18,14,10,0,0,0,14,7,10,4,4,4,4,4,4,6,3,2,3,0,20,6,26,25,26,26,26,26,25,26,29,29,29,17,20,18,13,12,22,19,14,14,22,8,9,8,8,8,8,8,8,7,8,0]} 1. d4 {[%emt 0:00:02]} d5 {[%emt 0:00:34]} 2. c4 {[%emt 0:00:08]} c6 {[%emt 0:00:38]} 3. cxd5 {[%emt 0:00:56]} cxd5 {[%emt 0:00:06]} 4. Bf4 {[%emt 0:00:05]} Nc6 {[%emt 0:01:04]} 5. e3 {[%emt 0:00:41]} Nf6 {[%emt 0:00:53]} 6. Nc3 {[%emt 0:00:07]} a6 {[%emt 0:00:24]} 7. Bd3 {[%emt 0:01:47]} Bg4 {[%emt 0:00:31]} 8. Nge2 {[%emt 0:00:25]} e6 {[%emt 0:00:55]} 9. Rc1 {[%emt 0:11:09]} Bxe2 {[%emt 0:09:13]} 10. Qxe2 {[%emt 0:03:42]} g6 {[%emt 0:03:49]} 11. Bg5 {[%emt 0:04:35]} Be7 {[%emt 0:01:13]} 12. O-O {[%emt 0:01:40]} Nd7 {[%emt 0:05:20]} 13. Bxe7 {[%emt 0:05:05]} Qxe7 {[%emt 0:01:45]} 14. Na4 {[%emt 0:04:56]} O-O {[%emt 0:23:10]} 15. Nc5 {[%emt 0:02:29]} Nxc5 {[%emt 0:01:58]} 16. Rxc5 {[%emt 0:18:19]} e5 {[%emt 0:15:16]} 17. Rxd5 {[%emt 0:00:00]} exd4 {[%emt 0:00:08]} 18. exd4 {[%emt 0:00:00]} Qxe2 {[%emt 0:05:34]} 19. Bxe2 {[%emt 0:00:00]} Rad8 {[%emt 0:00:08]} 20. Bc4 {[%emt 0:00:00]} b5 {[%emt 0:03:28]} 21. Bb3 {[%emt 0:00:00]} Nxd4 {[%emt 0:07:17]} 22. Rd1 {[%emt 0:00:44]} Rxd5 {[%emt 0:00:59]} 23. Bxd5 {[%emt 0:00:08]} Ne6 {[%emt 0:00:45]} 24. Kf1 {[%emt 0:09:56]} Rd8 {[%emt 0:03:18]} 25. Ke1 {[%emt 0:02:36]} Rd6 {[%emt 0:01:11]} 26. b4 {[%emt 0:05:49]} Kf8 {[%emt 0:00:29]} 27. Bb7 {[%emt 0:03:50]} Rb6 {[%emt 0:05:21]} 28. Bc8 {[%emt 0:02:53]} Rc6 {[%emt 0:01:37]} 29. Bb7 {[%emt 0:00:47]} Rb6 {[%emt 0:00:41]} 30. Bf3 {[%emt 0:02:12]} Ke7 {[%emt 0:00:39]} 31. h4 {[%emt 0:00:57]} a5 {[%emt 0:03:08]} 32. bxa5 {[%emt 0:01:58]} Ra6 {[%emt 0:00:00]} 33. Bd5 {[%emt 0:01:06]} Nf4 {[%emt 0:01:55]} 34. Bb7 {[%emt 0:02:46]} Rxa5 {[%emt 0:00:01]} 35. g3 {[%emt 0:00:14]} Ne6 {[%emt 0:01:10]} 36. Bd5 {[%emt 0:00:32]} b4 {[%emt 0:02:34]} 37. Bb3 {[%emt 0:04:30]} Re5+ {[%emt 0:00:36]} 38. Kf1 {[%emt 0:01:05]} Rc5 {[%emt 0:01:05]} 39. Re1 {[%emt 0:01:09]} Rb5 {[%emt 0:00:34]} 40. Re4 {[%emt 0:01:24]} Kd6 {[%emt 0:00:27]} 41. Ke2 {[%emt 0:32:53]} h6 {[%emt 0:08:30]} 42. Ke3 {[%emt 0:00:00]} g5 {[%emt 0:01:49]} 43. hxg5 {[%emt 0:00:00]} hxg5 {[%emt 0:00:10]} 44. Kf3 {[%emt 0:00:00]} Ke7 {[%emt 0:06:48]} 45. Ba4 {[%emt 0:00:00]} Rb8 {[%emt 0:02:26]} 46. Kg4 {[%emt 0:00:00]} Kf6 {[%emt 0:01:01]} 47. Bb3 {[%emt 0:00:00]} Rb5 {[%emt 0:02:55]} 48. f3 {[%emt 0:02:09]} Rb8 {[%emt 0:01:13]} 49. Rc4 {[%emt 0:01:04]} Rb6 {[%emt 0:02:57]} 50. f4 {[%emt 0:02:28]} gxf4 {[%emt 0:00:08]} 51. gxf4 {[%emt 0:00:06]} Rb5 {[%emt 0:01:21]} 52. Rc6 {[%emt 0:00:41]} Ke7 {[%emt 0:02:28]} 53. Bxe6 {[%emt 0:02:23]} 1/2-1/2